bitfinex-derivatives/quotes_ETHF0:USTF0_20250828
["timestamp","ask_amount","ask_price","bid_price","bid_amount"]
[1756387860488,3.2078,4610.4,4609.6,0.2878]
[1756387860489,0.50194635,4609.7,4609.6,0.2878]
[1756387860696,0.50194635,4609.7,4609.2,20.256]
[1756387860697,3.2078,4610.4,4609.5,1.85047562]
[1756387860890,3.2078,4610.4,4610.3,0.2878]
[1756387861083,3.70992599,4610.4,4610.3,0.2878]
[1756387862089,3.70992599,4610.4,4610.2,20.263]
[1756387862300,3.2078,4610.4,4610.3,20.257]
[1756387862590,0.2931,4610.2,4609.8,1.56267562]
[1756387862785,0.97601,4610.3,4609.0,4.77047562]
[1756387862786,0.3905,4609.2,4609.0,4.77047562]
[1756387862982,0.39051,4609.0,4608.8,5.05827562]
[1756387863185,0.2931,4608.9,4608.8,3.2078]
[1756387863384,3.2078,4609.4,4608.7,20.262]
[1756387863586,0.49804941,4609.3,4609.1,0.2878]
[1756387863798,0.39048,4609.4,4609.1,3.2078]
[1756387863991,0.39047,4609.6,4609.3,1.56249746]
[1756387864301,1.95168,4611.2,4609.2,18.74]
[1756387864302,0.2931,4610.7,4609.7,0.2878]
[1756387864490,0.2931,4610.7,4609.9,3.2078]
[1756387864491,0.49817204,4610.6,4609.9,3.2078]
[1756387864685,0.49817204,4610.5,4610.0,0.2878]
[1756387864893,0.49817204,4610.4,4609.9,0.2878]
[1756387865094,0.49817204,4610.3,4609.8,20.286]
[1756387865288,0.49817204,4610.2,4609.8,20.286]
[1756387865493,0.49812826,4610.1,4609.8,20.286]
[1756387865687,0.2931,4610.7,4609.8,20.286]
[1756387865688,0.49812826,4610.0,4609.9,0.2878]
[1756387865888,6.98425588,4611.9,4609.3,4.77029746]
[1756387865889,0.2878,4610.1,4609.3,3.4857]
[1756387866084,0.2878,4609.7,4609.1,1.56249746]
[1756387866288,0.2878,4609.5,4608.6,20.3]
[1756387866484,0.49812826,4609.4,4608.8,0.2779]
[1756387866683,0.49812826,4609.4,4608.7,0.39054]
[1756387866684,0.49812826,4609.4,4608.7,0.2779]
[1756387866888,0.49812826,4609.3,4608.8,20.299]
[1756387867090,0.49812826,4609.2,4609.1,0.2779]
[1756387867391,0.49812826,4609.5,4609.1,3.4857]
[1756387867595,0.49812826,4609.4,4609.0,20.305]
[1756387867890,0.2878,4609.0,4608.4,20.308]
[1756387868085,0.2878,4608.8,4608.4,20.308]
[1756387868286,0.2878,4608.6,4608.0,20.5859]
[1756387868492,3.70592826,4608.5,4607.5,3.2078]
[1756387868689,0.2878,4608.3,4607.3,20.308]
[1756387868891,3.2078,4608.5,4607.6,0.2779]
[1756387868892,0.49812826,4608.2,4607.6,0.2779]
[1756387869094,0.2878,4609.4,4608.2,0.1195]
[1756387869297,0.2878,4609.0,4608.3,20.313]
[1756387869515,3.2078,4609.1,4607.5,20.4525]
[1756387869796,0.2878,4608.1,4607.5,20.333]
[1756387869993,3.2078,4608.2,4607.6,0.1195]
[1756387870396,3.4956,4608.7,4607.7,3.59842]
[1756387870694,3.4956,4608.7,4607.7,3.2078]
[1756387870888,3.4956,4608.7,4607.8,0.51011]
[1756387871093,0.2878,4608.7,4607.8,0.51011]
[1756387871295,0.2878,4608.7,4607.8,0.1195]
[1756387871593,1.56471304,4609.7,4607.8,0.1195]
[1756387871594,3.2078,4609.6,4607.8,0.1195]
[1756387871802,0.2878,4609.5,4608.2,0.1193]
[1756387871993,1.56471304,4610.4,4609.0,3.2078]
[1756387872297,0.2878,4610.3,4609.7,3.2078]
[1756387872602,3.2078,4611.0,4609.7,3.2078]
[1756387872603,0.2878,4610.8,4609.9,0.1193]
[1756387872897,0.2878,4610.3,4609.0,1.56321714]
[1756387873087,3.2078,4609.1,4608.2,11.5483]
[1756387873293,0.2878,4609.0,4608.2,11.5483]
[1756387873488,0.2878,4609.0,4608.3,20.379]
[1756387873688,3.2078,4609.1,4608.1,3.2078]
[1756387873997,1.56471304,4609.7,4606.1,3.2078]
[1756387873998,0.2878,4608.3,4606.1,3.2078]
[1756387874197,3.2078,4608.5,4606.1,3.2078]
[1756387874198,3.2078,4607.0,4606.1,3.2078]
[1756387874405,3.2078,4607.0,4605.9,3.219]
[1756387874599,3.2078,4607.0,4605.8,40.8]
[1756387874803,0.2878,4606.8,4606.1,3.2078]
[1756387875098,0.2878,4607.4,4606.2,0.1193]
[1756387875306,0.2878,4607.4,4606.3,20.395]
[1756387875801,0.2878,4607.4,4606.7,0.39071]
[1756387876112,3.2078,4608.1,4607.1,3.3271]
[1756387876301,3.2078,4608.1,4607.1,0.1193]
[1756387876596,3.2078,4608.1,4606.7,11.102]
[1756387876796,3.2078,4608.1,4606.7,11.4927]
[1756387877006,0.2878,4608.0,4607.1,3.2078]
[1756387877197,3.2078,4608.1,4607.3,0.39065]
[1756387877399,3.2078,4608.6,4607.6,3.3271]
[1756387877699,0.2878,4609.0,4607.6,0.50993]
[1756387877905,0.2878,4609.0,4607.6,0.1193]
[1756387878197,0.2878,4609.5,4608.2,0.39057]
[1756387878399,0.2878,4609.5,4608.4,0.39056]
[1756387878598,0.2878,4609.5,4608.3,0.1193]
[1756387878830,0.2878,4609.5,4608.4,4.161]
[1756387879005,0.2878,4609.5,4608.8,0.1193]
[1756387879292,3.2078,4609.6,4608.4,4.161]
[1756387879293,3.4956,4610.1,4609.2,3.2078]
[1756387879498,0.2878,4610.1,4609.3,0.1193]
[1756387880201,3.4956,4610.1,4609.3,0.1193]
[1756387880400,0.2878,4610.1,4609.4,0.39047]
[1756387880698,0.2878,4610.1,4609.2,11.1608]
[1756387880699,0.2878,4611.0,4609.7,3.2078]
[1756387881099,0.52523963,4610.9,4609.8,0.39044]
[1756387881402,0.52523842,4610.8,4609.9,0.39043]
[1756387881702,0.52523842,4610.7,4609.8,0.1193]
[1756387881905,0.52523842,4610.6,4609.8,0.1193]
[1756387882108,0.2878,4610.4,4609.8,16.334]
[1756387882307,0.2878,4610.2,4609.7,3.2078]
[1756387882506,0.52523842,4610.1,4609.2,3.2078]
[1756387882706,3.2078,4610.7,4609.2,3.2078]
[1756387882707,0.52523842,4610.0,4609.2,3.2078]
[1756387882909,0.2878,4609.8,4608.8,19.691]
[1756387883206,0.2878,4609.6,4608.8,19.691]
[1756387883405,0.2878,4609.6,4608.7,3.59833]
[1756387883406,0.52523842,4609.5,4608.7,3.3271]
[1756387883607,0.52523842,4609.4,4608.7,23.7451]
[1756387883800,3.2078,4610.1,4609.3,0.1193]
[1756387884106,0.52533154,4610.0,4609.3,0.50978]
[1756387884409,3.2078,4610.7,4609.8,3.71754]
[1756387884605,0.52546916,4610.6,4609.9,20.415]
[1756387884809,0.52546916,4610.5,4609.9,20.415]
[1756387885006,0.2878,4610.8,4609.9,20.415]
[1756387885007,0.52546916,4610.4,4610.3,3.3271]
[1756387885203,3.4956,4611.4,4610.4,0.1193]
[1756387885406,0.52554243,4611.3,4610.8,3.2078]
[1756387885604,3.2078,4611.9,4611.1,0.1193]
[1756387885605,0.2878,4611.9,4611.1,0.1193]
[1756387885908,0.52545833,4611.8,4611.4,3.3271]
[1756387886110,0.52545833,4611.7,4611.5,0.1193]
[1756387886409,0.52548017,4611.6,4611.4,3.2078]
[1756387886606,0.52547811,4611.5,4611.4,3.2078]
[1756387886820,0.81327811,4611.5,4610.9,3.2078]
[1756387887005,0.2878,4611.3,4610.4,3.2078]
[1756387887205,3.4956,4611.1,4609.9,1.93706663]
[1756387887407,0.2878,4610.9,4609.9,20.409]
[1756387887612,0.52547811,4610.8,4610.1,31.3753]
[1756387888114,0.2878,4610.7,4610.2,20.41]
[1756387888301,0.81327811,4610.6,4610.1,31.256]
[1756387888507,0.52547811,4610.5,4610.2,20.406]
[1756387888714,3.4956,4611.2,4610.1,31.3753]
[1756387889017,0.2878,4611.0,4610.1,31.3753]
[1756387889207,0.2878,4610.8,4610.1,31.256]
[1756387889514,3.73312665,4610.7,4610.1,31.256]
[1756387889812,0.52532665,4610.6,4610.2,0.1193]
[1756387890013,0.52532665,4610.5,4610.2,0.1193]
[1756387890315,0.2878,4610.2,4610.1,31.256]
[1756387890508,3.2078,4610.7,4610.1,52.17071]
[1756387890821,0.52527773,4610.6,4610.3,0.1193]
[1756387891003,0.2878,4610.4,4609.9,3.2078]
[1756387891200,3.4956,4610.2,4609.3,3.2078]
[1756387891412,0.2878,4610.0,4609.3,3.2078]
[1756387891615,0.52527773,4609.9,4609.3,3.2078]
[1756387891819,0.2878,4610.5,4609.8,3.2078]
[1756387892010,0.52517275,4610.4,4609.8,3.2078]
[1756387892205,0.2878,4610.2,4609.8,3.3271]
[1756387892403,3.2078,4610.7,4609.8,3.2078]
[1756387892404,0.2878,4610.0,4609.8,3.2078]
[1756387892607,0.52517275,4609.9,4609.8,3.2078]
[1756387892916,0.52517275,4610.3,4609.8,3.2078]
[1756387893115,0.52517275,4610.2,4609.8,3.2078]
[1756387893323,0.52517275,4610.1,4610.0,0.1193]
[1756387893518,0.2878,4611.4,4610.0,0.39043]
[1756387893812,0.2878,4611.4,4609.5,20.41]
[1756387893813,0.2878,4611.4,4610.3,3.2078]
[1756387894109,0.2878,4611.4,4610.4,17.34739]
[1756387894414,0.2878,4612.0,4611.0,0.39034]
[1756387894718,0.2878,4612.0,4611.1,20.401]
[1756387895217,0.2878,4612.0,4611.4,3.2078]
[1756387895915,3.2078,4612.3,4611.4,3.2078]
[1756387896212,3.2078,4612.3,4611.4,13.2218]
[1756387896213,0.3014,4612.2,4611.4,13.2218]
[1756387896427,0.3014,4612.2,4611.4,13.61211]
[1756387896709,3.2078,4612.3,4611.6,0.39029]
[1756387896915,0.3014,4612.8,4611.9,3.2078]
[1756387896916,3.5092,4612.8,4611.9,3.2078]
[1756387897218,3.5092,4612.8,4612.0,19.999]
[1756387897412,3.2078,4612.8,4611.9,20.388]
[1756387897606,0.3014,4612.7,4611.9,23.5958]
[1756387897814,3.5092,4613.3,4612.4,3.2078]
[1756387898414,0.3014,4613.3,4612.4,3.2078]
[1756387898611,3.604,4616.4,4612.4,3.2078]
[1756387898612,0.3014,4614.0,4612.9,0.39018]
[1756387898804,0.3014,4614.0,4612.1,31.245]
[1756387898805,0.3014,4614.0,4613.0,23.5878]
[1756387899105,0.3014,4614.0,4613.0,3.2078]
[1756387899311,0.3014,4614.2,4613.0,3.2078]
[1756387899612,0.3014,4613.7,4612.5,3.2078]
[1756387900113,3.2078,4613.8,4612.5,3.2078]
[1756387900317,0.3014,4613.7,4612.5,12.9778]
[1756387900919,0.3014,4613.7,4612.6,20.379]
[1756387901612,0.3014,4613.7,4612.5,3.2078]
[1756387901613,0.3014,4613.7,4612.5,3.59801]
[1756387901819,3.2078,4613.6,4612.6,16.081]
[1756387902113,3.2078,4613.1,4612.5,3.2078]
[1756387902811,3.5092,4613.1,4612.5,3.2078]
[1756387903212,3.2078,4613.1,4612.4,20.374]
[1756387903511,0.3014,4613.0,4612.4,20.374]
[1756387903716,3.2078,4613.1,4612.4,20.374]
[1756387904212,3.2078,4613.1,4612.5,20.379]
[1756387904414,0.3014,4612.5,4611.4,3.2078]
[1756387904620,3.2078,4612.0,4610.4,5.14486663]
[1756387904812,0.3014,4610.8,4609.8,4.65859763]
[1756387905016,3.2078,4610.1,4609.1,3.2078]
[1756387905318,0.3014,4610.0,4609.1,3.2078]
[1756387905514,0.54319571,4609.9,4608.9,7.308]
[1756387905719,0.54319571,4609.8,4608.5,3.2078]
[1756387906022,3.2078,4609.6,4608.5,14.9768]
[1756387906221,0.84459571,4609.5,4608.5,14.9768]
[1756387906416,0.54319571,4609.4,4608.5,14.9768]
[1756387906618,0.54319571,4609.3,4608.5,14.9768]
[1756387906820,0.3014,4610.3,4609.0,3.2078]
[1756387907014,0.3014,4610.3,4608.5,11.769]
[1756387907015,0.54224107,4610.2,4608.9,3.2078]
[1756387907315,0.54224107,4610.1,4609.0,0.2169]
[1756387907618,0.54224107,4610.1,4609.1,13.576]
[1756387907820,3.2078,4609.6,4608.9,3.2078]
[1756387908120,3.2078,4609.6,4608.5,10.762]
[1756387908121,0.84364107,4609.5,4608.5,10.762]
[1756387908323,0.54224107,4609.4,4608.5,10.762]
[1756387908520,0.54224107,4609.3,4608.6,0.21697]
[1756387908718,3.2078,4610.4,4608.8,3.2078]
[1756387908918,3.2078,4610.4,4608.6,0.21697]
[1756387908919,0.54225448,4610.3,4609.4,3.2078]
[1756387909123,0.54225448,4610.2,4609.5,12.662]
[1756387909327,0.54225448,4610.1,4609.4,3.2078]
[1756387909525,3.2078,4609.7,4608.8,1.93706663]
[1756387909725,0.8436681,4609.6,4608.8,13.699]
[1756387910025,0.5422681,4609.5,4608.8,13.699]
[1756387910222,0.5422681,4609.4,4608.8,13.699]
[1756387910421,0.5422681,4609.3,4608.8,13.699]
[1756387910621,0.5422681,4609.2,4608.8,13.699]
[1756387910817,0.3014,4609.6,4608.8,13.699]
[1756387911019,3.2078,4610.3,4608.8,13.699]
[1756387911020,0.53883922,4609.5,4608.8,13.699]
[1756387911322,0.53883922,4609.4,4608.8,13.699]
[1756387911530,0.53885842,4609.3,4608.8,13.699]
[1756387911718,1.967,4611.1,4608.7,3.2078]
[1756387911719,0.3014,4609.1,4608.7,44.0078]
[1756387911915,0.3014,4609.6,4608.5,20.401]
[1756387912115,0.3014,4609.4,4608.5,20.401]
[1756387912322,0.53884619,4609.3,4608.5,20.401]
[1756387912512,0.53884619,4609.2,4608.6,40.8]
[1756387912718,3.2078,4609.7,4608.6,40.8]
[1756387913024,0.53886149,4609.6,4608.6,40.8]
[1756387913214,3.2078,4609.2,4608.2,3.2078]
[1756387913423,3.2078,4608.7,4607.7,5.14486663]
[1756387913618,0.84026149,4608.6,4607.7,3.2078]
[1756387913818,0.53886149,4608.5,4607.7,3.2078]
[1756387914123,0.53886149,4608.4,4607.7,3.2078]
[1756387914417,4.181,4610.0,4607.1,2.32773663]
[1756387914418,3.2078,4608.1,4607.1,1.93706663]
[1756387914621,3.2078,4607.2,4605.9,1.93706663]
[1756387914829,0.3014,4606.5,4605.2,1.93706663]
[1756387915054,0.53886149,4606.4,4605.5,40.8]
[1756387915219,1.55968303,4607.3,4605.5,40.8]
[1756387915220,0.3014,4607.2,4605.5,41.19081]
[1756387915422,0.53854834,4607.1,4605.6,3.42489]
[1756387915727,0.53854834,4607.0,4606.3,0.39074]
[1756387915921,3.5092,4607.8,4606.4,20.437]
[1756387916122,0.3014,4607.6,4606.4,20.437]
[1756387916326,0.5385038,4607.5,4606.4,20.437]
[1756387916519,0.5385038,4607.4,4606.4,20.437]
[1756387916714,0.5385038,4607.3,4606.4,20.437]
[1756387916915,0.3014,4607.6,4606.4,20.437]
[1756387916916,0.5385038,4607.2,4606.4,20.437]
[1756387917132,0.3014,4607.6,4606.5,20.441]
[1756387917133,0.5385038,4607.1,4606.5,20.441]
[1756387917320,0.3014,4607.6,4606.6,0.39071]
[1756387917526,0.53593263,4607.5,4606.5,20.441]
[1756387917723,0.3014,4607.1,4606.6,20.438]
[1756387917927,0.53593263,4607.0,4606.4,20.436]
[1756387918124,0.3014,4607.1,4606.4,20.436]
[1756387918426,0.3014,4606.9,4606.0,20.433]
[1756387918623,0.3014,4606.9,4606.0,23.6408]
[1756387918924,3.2078,4606.5,4605.6,20.433]
[1756387919128,3.2078,4607.0,4606.0,3.2078]
[1756387919330,0.53587481,4606.9,4605.6,20.8238]
[1756387919531,0.53587481,4606.8,4605.7,0.39079]
[1756387919830,0.53587481,4606.7,4605.6,20.433]
[1756387920022,3.2078,4607.0,4605.6,20.433]
[1756387920228,0.3014,4606.8,4605.8,0.39078]
[1756387920422,0.53589157,4606.7,4605.6,20.8238]
[1756387920626,0.53589157,4606.7,4606.0,3.2078]
[1756387920627,0.3014,4606.6,4606.0,3.2078]
[1756387920828,3.2078,4607.0,4606.0,3.2078]
[1756387921022,0.5358936,4606.9,4606.0,3.2078]
[1756387921229,0.3014,4606.7,4606.0,3.2078]
[1756387921432,0.5358936,4606.6,4606.0,3.2078]
[1756387921628,0.3014,4606.7,4606.1,0.39076]
[1756387921827,0.3014,4606.7,4606.0,3.2078]
[1756387921828,0.53586983,4606.6,4606.0,3.2078]
[1756387922028,3.2078,4607.0,4606.0,3.2078]
[1756387922224,0.3014,4606.8,4606.0,3.2078]
[1756387922532,0.53587674,4606.7,4606.0,3.2078]
[1756387922925,3.2078,4607.0,4606.0,3.2078]
[1756387923127,0.53598759,4606.9,4606.0,3.2078]
[1756387923333,0.3014,4606.7,4606.1,20.466]
[1756387923528,0.53598759,4606.6,4606.0,23.6758]
[1756387923825,3.2078,4606.7,4606.0,23.6758]
[1756387924024,33.20525588,4608.6,4606.0,23.6758]
[1756387924025,3.2078,4607.2,4606.0,23.6758]
[1756387924358,0.5362121,4607.1,4606.5,0.39072]
[1756387924532,0.5362121,4607.0,4606.1,0.21708]
[1756387924834,0.5362121,4606.9,4606.1,0.21708]
[1756387925130,0.53617433,4606.8,4605.9,3.2078]
[1756387925325,3.816,4607.7,4605.9,3.2078]
[1756387925326,3.74397433,4606.7,4605.9,3.2078]
[1756387925525,0.3014,4606.5,4605.9,3.2078]
[1756387925725,0.3014,4606.3,4605.3,23.6898]
[1756387925928,0.2859,4606.1,4605.3,20.482]
[1756387926123,0.2859,4606.1,4605.1,31.247]
[1756387926124,0.2859,4605.6,4604.7,3.2078]
[1756387926326,3.2078,4605.2,4604.2,3.2078]
[1756387926531,0.82207433,4605.1,4604.4,0.3909]
[1756387926731,31.264,4606.9,4604.3,40.8]
[1756387926732,3.2078,4605.7,4604.3,40.8]
[1756387927033,0.53615499,4605.6,4604.5,0.39089]
[1756387927223,0.53615499,4605.5,4604.8,3.2078]
[1756387927429,3.2078,4605.1,4604.2,1.93706663]
[1756387927625,0.2859,4604.5,4603.4,14.197]
[1756387927830,0.2859,4603.4,4602.7,2.03706663]
[1756387928027,0.53594675,4603.3,4602.7,0.1]
[1756387928336,0.53594675,4603.3,4601.7,2.721531]
[1756387928337,3.2078,4603.0,4601.5,3.2078]
[1756387928530,4.178,4603.4,4601.0,0.49119]
[1756387928531,0.2859,4602.0,4601.0,0.49119]
[1756387928736,0.2859,4602.0,4601.0,0.1]
[1756387929032,0.2859,4602.7,4601.0,0.1]
[1756387929429,3.2078,4602.3,4601.0,0.1]
[1756387929734,31.267,4604.7,4600.2,0.1]
[1756387929735,3.2078,4601.3,4600.2,0.1]
[1756387930031,3.2078,4601.3,4600.0,20.516]
[1756387930232,3.2078,4601.3,4600.4,0.1]
[1756387930630,3.2078,4601.3,4600.8,0.39121]
[1756387930834,3.2078,4601.3,4601.2,0.39118]
[1756387931029,3.2078,4601.8,4601.7,0.39113]
[1756387931230,3.2078,4601.8,4601.2,0.1]
[1756387931432,0.2859,4601.7,4600.8,3.2078]
[1756387931641,0.2859,4601.7,4600.5,0.39123]
[1756387931933,0.2859,4601.7,4600.3,0.97813]
[1756387932130,0.2859,4601.7,4601.1,0.39118]
[1756387932348,3.2078,4601.8,4601.4,0.39115]
[1756387932644,3.2078,4601.8,4601.5,0.39114]
[1756387932834,3.2078,4601.8,4600.9,20.6853]
[1756387932835,3.2078,4601.8,4601.7,0.1003]
[1756387933035,3.4937,4602.4,4601.7,0.1003]
[1756387933332,3.2078,4602.9,4602.6,0.39105]
[1756387933534,3.2078,4602.9,4602.6,10.676]
[1756387933731,3.2078,4603.4,4602.8,4.1854]
[1756387934030,3.2078,4603.4,4601.9,40.8]
[1756387934031,0.2859,4604.0,4602.3,3.2078]
[1756387934234,0.2859,4604.0,4601.9,40.8]
[1756387934235,0.2859,4604.0,4603.1,0.39101]
[1756387934439,0.2859,4604.0,4602.8,0.9776]
[1756387934625,0.2859,4604.0,4603.8,0.39095]
[1756387934939,0.2859,4604.6,4604.2,0.39091]
[1756387935137,3.2078,4604.7,4604.3,0.3909]
[1756387935437,1.95825588,4609.9,4604.3,0.3909]
[1756387935438,0.2859,4604.6,4604.5,0.39089]
[1756387935643,0.2859,4605.9,4605.6,0.3908]
[1756387935828,3.4937,4606.0,4605.0,3.2078]
[1756387936034,3.2078,4606.0,4604.3,11.10291]
[1756387936234,0.2859,4605.4,4604.6,0.39088]
[1756387936435,0.2859,4605.4,4604.3,10.712]
[1756387936436,3.2078,4605.5,4604.7,0.39087]
[1756387936640,0.2859,4605.4,4604.5,3.2078]
[1756387936840,3.2078,4605.5,4604.5,3.2078]
[1756387936841,3.2078,4605.5,4604.9,0.39085]
[1756387937536,3.2078,4605.5,4604.5,3.2078]
[1756387937537,0.2859,4605.4,4604.7,0.39088]
[1756387937743,3.4937,4605.5,4604.5,4.18504]
[1756387937940,1.55968303,4605.3,4605.2,0.39084]
[1756387938136,2.09910577,4605.3,4605.2,0.39084]
[1756387938340,0.53942274,4605.3,4605.2,0.49114]
[1756387938835,0.53942274,4605.3,4605.0,3.2078]
[1756387939031,0.53942274,4605.3,4604.4,20.61]
[1756387939032,0.2859,4605.1,4604.7,0.39088]
[1756387939230,0.53942274,4605.0,4604.8,0.39086]
[1756387939445,0.53942274,4604.9,4604.8,0.49116]
[1756387939836,0.53942274,4604.9,4604.8,4.49116]
[1756387940035,0.43912274,4604.9,4604.8,4.49116]
[1756387941029,0.43912274,4604.9,4604.8,20.604]
[1756387941233,0.43912274,4604.9,4604.8,24.604]
[1756387941637,0.43912274,4604.9,4604.7,0.39087]
[1756387941833,0.2859,4605.6,4604.8,61.406]
[1756387942040,1.55968303,4606.0,4605.2,3.59863]
[1756387942336,0.2859,4605.5,4605.2,3.2078]
[1756387942540,0.2859,4605.4,4605.2,3.59863]
[1756387942741,1.84558303,4606.1,4605.2,3.2078]
[1756387943043,195.6372888,4609.4,4604.8,61.406]
[1756387943044,1.55968303,4606.3,4605.3,3.2078]
[1756387943237,1.55968303,4606.6,4605.8,3.2078]
[1756387943436,0.2859,4606.5,4605.9,17.886]
[1756387943637,0.2859,4606.5,4605.8,3.2078]
[1756387943832,0.2859,4606.7,4605.8,3.2078]
[1756387944039,3.2078,4606.3,4605.2,3.2078]
[1756387944244,3.2078,4606.3,4605.3,20.601]
[1756387944245,3.4937,4606.3,4605.3,20.601]
[1756387944440,3.4937,4606.3,4605.2,3.2078]
[1756387944637,3.4937,4606.3,4605.3,20.611]
[1756387945054,1.55968303,4605.7,4604.5,3.2078]
[1756387945331,0.2859,4605.2,4604.0,3.2078]
[1756387945640,1.55968303,4605.0,4604.0,40.8]
[1756387945835,0.2859,4604.7,4604.0,3.2078]
[1756387946340,1.55968303,4604.8,4604.0,3.2078]
[1756387946341,1.55968303,4604.8,4604.3,0.39091]
[1756387946541,3.2078,4605.1,4604.0,3.2078]
[1756387946737,1.84558303,4605.0,4604.1,20.614]
[1756387947036,3.2078,4605.1,4604.5,0.39089]
[1756387947237,3.2078,4605.1,4604.8,0.39086]
[1756387947546,1.55968303,4605.2,4603.9,40.8]
[1756387947547,4.76748303,4605.9,4604.9,21.58815]
[1756387947737,3.2078,4606.4,4605.2,3.59863]
[1756387948042,1.55968303,4606.0,4605.4,0.39081]
[1756387948245,3.2078,4606.4,4605.3,0.39082]
[1756387948246,1.55968303,4606.1,4605.3,0.39082]
[1756387948441,0.2859,4606.0,4605.2,3.2078]
[1756387948740,0.2859,4605.7,4604.8,20.544]
[1756387948936,0.2859,4605.3,4604.5,31.282]
[1756387949246,1.55968303,4605.3,4604.6,3.2078]
[1756387949433,1.55968303,4605.1,4604.6,3.2078]
[1756387949633,1.55968303,4604.8,4604.5,3.2078]
[1756387949844,1.95825588,4604.6,4604.0,3.2078]
[1756387950044,1.84528111,4604.1,4604.0,3.2078]
[1756387950341,0.2859,4604.1,4604.0,3.2078]
[1756387950641,0.2859,4604.1,4603.4,44.0078]
[1756387950843,1.55938446,4604.0,4603.4,44.0078]
[1756387951241,1.55938446,4604.0,4603.4,3.2078]
[1756387951443,1.55938446,4604.0,4602.7,3.2078]
[1756387951444,1.95825588,4603.6,4602.7,3.2078]
[1756387951636,0.2859,4602.9,4602.7,3.2078]
[1756387951833,1.55897793,4603.0,4602.7,3.2078]
[1756387952032,0.2859,4602.8,4602.7,3.2078]
[1756387952346,0.51230535,4602.8,4602.7,3.2078]
[1756387952540,0.51230535,4602.8,4602.7,7.42506]
[1756387952748,0.50943198,4602.8,4602.7,7.81611]
[1756387953039,0.50943198,4602.8,4602.7,23.8638]
[1756387953245,0.50943198,4602.8,4602.7,3.2078]
[1756387953246,0.79533198,4602.8,4602.7,3.2078]
[1756387953645,2.35430991,4602.8,4602.7,3.2078]
[1756387954637,2.35430991,4602.8,4602.2,40.8]
[1756387954638,2.35430991,4602.8,4602.2,44.0078]
[1756387954943,0.50943198,4602.7,4602.5,0.39106]
[1756387955141,1.55897793,4603.6,4602.4,3.2078]
[1756387955342,1.55897793,4603.5,4603.0,3.59882]
[1756387955543,3.2078,4603.7,4603.0,3.2078]
[1756387955740,1.55897793,4603.6,4602.3,14.471]
[1756387955946,1.55897793,4603.3,4602.3,14.471]
[1756387956250,1.55897793,4602.9,4602.2,3.2078]
[1756387956440,1.55897793,4602.7,4602.2,3.2078]
[1756387956640,1.55897793,4602.6,4602.2,3.2078]
[1756387956841,0.2877,4602.5,4602.0,20.754]
[1756387957048,1.55897793,4602.6,4602.0,20.754]
[1756387957344,1.84667793,4602.6,4602.0,20.754]
[1756387957946,1.55897793,4602.7,4602.1,23.9598]
[1756387958143,1.55897793,4603.1,4602.1,23.9598]
[1756387958351,1.55897793,4603.3,4602.1,23.9598]
[1756387958542,1.55897793,4603.3,4602.4,0.39107]
[1756387958850,1.55897793,4603.4,4602.6,3.2078]
[1756387959241,0.2877,4603.1,4602.6,3.2078]
[1756387959451,1.55897793,4602.8,4602.6,3.2078]
[1756387959940,1.55897793,4602.9,4602.6,3.2078]
[1756387960343,1.55897793,4603.0,4602.9,0.39103]
[1756387960545,1.55897793,4603.2,4602.7,20.745]
[1756387960847,1.36766289,4604.1,4603.1,3.2078]
[1756387961151,3.2078,4604.2,4603.6,0.39097]
[1756387961353,3.2078,4604.2,4603.7,20.755]
[1756387961653,3.4955,4604.2,4603.6,20.755]
[1756387962151,0.2877,4604.1,4603.4,20.757]
[1756387962351,3.2078,4604.2,4603.6,0.39097]
[1756387962551,3.2078,4604.2,4603.4,20.757]
[1756387962752,3.2078,4604.2,4603.5,20.754]
[1756387963141,3.2078,4604.2,4603.2,40.8]
[1756387963351,3.2078,4604.2,4603.1,3.2078]
[1756387963647,3.2078,4603.7,4602.5,3.2078]
[1756387963849,5.16605588,4603.7,4602.5,3.2078]
[1756387964154,3.2078,4603.7,4602.5,3.2078]
[1756387964351,5.16605588,4603.7,4602.5,3.2078]
[1756387964555,0.2877,4603.6,4602.5,3.2078]
[1756387965050,0.2877,4603.0,4602.6,20.765]
[1756387965352,0.2877,4602.9,4602.0,3.2078]
[1756387965556,5.16605588,4603.1,4602.5,0.39106]
[1756387965758,3.2078,4603.1,4602.6,21.16705]
[1756387966254,1.95825588,4603.5,4602.6,21.16705]
[1756387966455,2.24595588,4603.6,4602.6,21.16705]
[1756387966655,1.95825588,4603.7,4602.7,0.39104]
[1756387966860,3.2078,4603.8,4603.0,3.59881]
[1756387967156,0.50947598,4603.7,4603.0,3.2078]
[1756387967347,0.50947598,4603.6,4603.0,3.2078]
[1756387967552,0.50947598,4603.5,4603.0,3.59882]
[1756387967754,0.50947598,4603.4,4603.0,3.2078]
[1756387967947,3.2078,4604.3,4603.1,1.56495749]
[1756387968262,0.50958206,4604.2,4603.5,3.2078]
[1756387968552,0.2877,4605.2,4604.0,3.59873]
[1756387968749,0.50336344,4605.1,4604.5,1.56428294]
[1756387968946,0.50336344,4605.1,4604.4,22.34928294]
[1756387968947,0.50335257,4605.0,4604.4,22.34928294]
[1756387969151,3.2078,4605.1,4604.4,22.34928294]
[1756387969446,0.2877,4605.2,4604.5,1.56428294]
[1756387969649,0.2877,4605.2,4604.6,1.56428294]
[1756387970055,0.2877,4605.2,4604.5,1.56428294]
[1756387970250,0.2877,4605.2,4604.5,1.95517294]
[1756387970555,0.2877,4606.0,4604.8,1.56428294]